fUSD/lending_fUSD_20240714
["ID","MTS","AMOUNT","RATE_DAILY","PERIOD"]
[332074378,1720950649902,-500.0,0.00013753,2]
[332074379,1720950649912,-500.0,0.00013753,2]
[332074380,1720950649922,-572.56,0.00013753,2]
[332074381,1720950649931,-893.73,0.00013753,2]
[332074382,1720950649941,-905.76,0.00013753,2]
[332074383,1720950649951,-547.24,0.00013753,2]
[332074397,1720950650149,-683.58,0.00013753,2]
[332074399,1720950650159,-1187.88,0.00013753,2]
[332074401,1720950650169,-1032.36,0.00013753,2]
[332074403,1720950650179,-759.13,0.00013753,2]
[332074405,1720950650189,-514.62,0.00013753,2]
[332074407,1720950650199,-938.14,0.00013753,2]
[332074409,1720950650210,-765.93,0.00013753,2]
[332074411,1720950650220,-1162.63,0.00013753,2]
[332074413,1720950650230,-500.0,0.00013753,2]
[332074415,1720950650241,-500.0,0.00013753,2]
[332074417,1720950650250,-500.0,0.00013753,2]
[332074419,1720950650261,-500.0,0.00013753,2]
[332074422,1720950650270,-645.24,0.00013753,2]
[332074424,1720950650281,-500.0,0.00013753,2]
[332074426,1720950650291,-500.0,0.00013753,2]
[332074428,1720950650302,-579.84,0.00013753,2]
[332074430,1720950650313,-762.44,0.00013753,2]
[332074432,1720950650322,-500.0,0.00013753,2]
[332074434,1720950650332,-500.0,0.00013753,2]
[332074436,1720950650341,-583.53,0.00013753,2]
[332074438,1720950650351,-1029.2,0.00013753,2]
[332074440,1720950650362,-1172.85,0.00013753,2]
[332074442,1720950650371,-500.0,0.00013753,2]
[332074444,1720950650381,-904.33,0.00013753,2]
[332074446,1720950650391,-500.0,0.00013753,2]
[332074448,1720950650401,-500.0,0.00013753,2]
[332074451,1720950650410,-770.11,0.00013753,2]
[332074453,1720950650420,-1137.48,0.00013753,2]
[332074455,1720950650430,-1332.95,0.00013753,2]
[332074457,1720950650441,-1437.39,0.00013753,2]
[332074459,1720950650451,-500.0,0.00013753,2]
[332074461,1720950650460,-700.72,0.00013753,2]
[332074463,1720950650470,-500.0,0.00013753,2]
[332074465,1720950650480,-850.84,0.00013753,2]
[332074467,1720950650489,-941.63,0.00013753,2]
[332074469,1720950650500,-500.0,0.00013753,2]
[332074471,1720950650511,-1100.84,0.00013753,2]
[332074473,1720950650521,-959.9,0.00013753,2]
[332074475,1720950650530,-820.43,0.00013753,2]
[332074477,1720950650539,-500.0,0.00013753,2]
[332074479,1720950650549,-500.0,0.00013753,2]
[332074481,1720950650558,-500.0,0.00013753,2]
[332074483,1720950650567,-500.0,0.00013753,2]
[332074485,1720950650580,-1469.12,0.00013753,2]
[332074488,1720950650594,-650.25,0.00013753,2]
[332074490,1720950650604,-1238.21,0.00013753,2]
[332074492,1720950650614,-500.0,0.00013753,2]
[332074494,1720950650627,-538.52,0.00013753,2]
[332074496,1720950650637,-500.0,0.00013753,2]
[332074498,1720950650647,-523.64,0.00013753,2]
[332074500,1720950650658,-500.0,0.00013753,2]
[332074503,1720950650672,-706.77,0.00013753,2]
[332074505,1720950650683,-500.0,0.00013753,2]
[332074507,1720950650693,-500.0,0.00013753,2]
[332074509,1720950650703,-500.0,0.00013753,2]
[332074511,1720950650714,-1336.52,0.00013753,2]
[332074513,1720950650723,-500.0,0.00013753,2]
[332074515,1720950650733,-500.0,0.00013753,2]
[332074517,1720950650743,-500.0,0.00013753,2]
[332074519,1720950650753,-500.0,0.00013753,2]
[332074522,1720950650764,-547.02,0.00013753,2]
[332074523,1720950650774,-500.0,0.00013753,2]
[332074525,1720950650784,-534.97,0.00013753,2]
[332074527,1720950650793,-500.0,0.00013753,2]
[332074529,1720950650803,-500.0,0.00013753,2]
[332074531,1720950650812,-694.52,0.00013753,2]
[332074533,1720950650822,-500.0,0.00013753,2]
[332074535,1720950650831,-954.03,0.00013753,2]
[332074537,1720950650841,-612.73,0.00013753,2]
[332074539,1720950650851,-500.0,0.00013753,2]
[332074542,1720950650862,-500.0,0.00013753,2]
[332074543,1720950650872,-500.0,0.00013753,2]
[332074544,1720950650882,-644.63,0.00013753,2]
[332074545,1720950650892,-500.0,0.00013753,2]
[332074546,1720950650902,-775.14,0.00013753,2]
[332074547,1720950650911,-500.0,0.00013753,2]
[332074548,1720950650922,-500.0,0.00013753,2]
[332074549,1720950650932,-645.56,0.00013753,2]
[332074550,1720950650942,-500.0,0.00013753,2]
[332074551,1720950650952,-500.0,0.00013753,2]
[332074552,1720950650962,-317.28139453,0.00013753,2]
[332074553,1720950650972,-500.0,0.00013753,2]
[332074554,1720950650982,-773.64,0.00013753,2]
[332074555,1720950650991,-847.7,0.00013753,2]
[332074556,1720950651001,-921.99,0.00013753,2]
[332074557,1720950651010,-888.19,0.00013753,2]
[332074558,1720950651019,-559.83,0.00013753,2]
[332074559,1720950651034,-1009.65,0.00013753,2]
[332074560,1720950651043,-592.49,0.00013753,2]
[332074561,1720950651053,-548.28,0.00013753,2]
[332074562,1720950651063,-500.0,0.00013753,2]
[332074563,1720950651072,-918.82,0.00013753,2]
[332074564,1720950651082,-820.45,0.00013753,2]
[332074566,1720950651092,-500.0,0.00013753,2]
[332074567,1720950651101,-500.0,0.00013753,2]
[332074568,1720950651112,-629.66,0.00013753,2]
[332074569,1720950651121,-909.59,0.00013753,2]
[332074570,1720950651131,-500.0,0.00013753,2]
[332074571,1720950651141,-500.0,0.00013753,2]
[332074572,1720950651150,-1119.46,0.00013753,2]
[332074573,1720950651160,-570.78,0.00013753,2]
[332074574,1720950651170,-500.0,0.00013753,2]
[332074575,1720950651179,-740.9,0.00013753,2]
[332074576,1720950651189,-500.0,0.00013753,2]
[332074577,1720950651199,-500.0,0.00013753,2]
[332074578,1720950651209,-941.16,0.00013753,2]
[332074579,1720950651218,-685.42,0.00013753,2]
[332074580,1720950651227,-500.0,0.00013753,2]
[332074581,1720950651236,-500.0,0.00013753,2]
[332074582,1720950651246,-598.23,0.00013753,2]
[332074583,1720950651255,-1142.67,0.00013753,2]
[332074584,1720950651265,-577.31,0.00013753,2]
[332074585,1720950651278,-500.0,0.00013753,2]
[332074586,1720950651288,-622.75,0.00013753,2]
[332074587,1720950651299,-584.17,0.00013753,2]
[332074588,1720950651309,-813.25,0.00013753,2]
[332074589,1720950651318,-500.0,0.00013753,2]
[332074590,1720950651328,-500.0,0.00013753,2]
[332074591,1720950651339,-500.0,0.00013753,2]
[332074592,1720950651349,-500.0,0.00013753,2]
[332074593,1720950651359,-541.57,0.00013753,2]
[332074594,1720950651369,-747.83,0.00013753,2]
[332074595,1720950651379,-500.0,0.00013753,2]
[332074596,1720950651389,-272.83500526,0.00013753,2]
[332074597,1720950651399,-500.0,0.00013753,2]
[332074598,1720950651408,-1064.99,0.00013753,2]
[332074599,1720950651418,-1051.47,0.00013753,2]
[332074600,1720950651427,-500.0,0.00013753,2]
[332074601,1720950651437,-500.0,0.00013753,2]
[332074602,1720950651447,-500.0,0.00013753,2]
[332074603,1720950651457,-871.4,0.00013753,2]
[332074604,1720950651467,-596.26,0.00013753,2]
[332074605,1720950651477,-505.98,0.00013753,2]
[332074606,1720950651486,-1124.43,0.00013753,2]
[332074607,1720950651496,-500.0,0.00013753,2]
[332074608,1720950651506,-779.51,0.00013753,2]
[332074609,1720950651515,-500.0,0.00013753,2]
[332074610,1720950651529,-1371.97,0.00013753,2]
[332074611,1720950651539,-504.21,0.00013753,2]
[332074612,1720950651549,-581.18345265,0.00013753,2]
[332074613,1720950651563,-958.71,0.00013753,2]
[332074614,1720950651572,-500.0,0.00013753,2]
[332074615,1720950651582,-500.0,0.00013753,2]
[332074616,1720950651594,-500.0,0.00013753,2]
[332074617,1720950651605,-500.07,0.00013753,2]
[332074618,1720950651615,-500.0,0.00013753,2]
[332074619,1720950651626,-500.0,0.00013753,2]
[332074620,1720950651635,-500.0,0.00013753,2]
[332074621,1720950651645,-732.18,0.00013753,2]
[332074622,1720950651654,-500.0,0.00013753,2]
[332074623,1720950651665,-555.4,0.00013753,2]
[332074624,1720950651675,-813.38,0.00013753,2]
[332074625,1720950651685,-949.26,0.00013753,2]
[332074626,1720950651695,-500.0,0.00013753,2]
[332074627,1720950651704,-780.46,0.00013753,2]
[332074628,1720950651714,-500.0,0.00013753,2]
[332074629,1720950651724,-500.0,0.00013753,2]
[332074630,1720950651733,-804.04,0.00013753,2]
[332074631,1720950651743,-683.36,0.00013753,2]
[332074632,1720950651753,-500.0,0.00013753,2]
[332074633,1720950651763,-651.95,0.00013753,2]
[332074634,1720950651776,-500.0,0.00013753,2]
[332074635,1720950651786,-1136.56,0.00013753,2]
[332074636,1720950651797,-730.32,0.00013753,2]
[332074637,1720950651807,-500.0,0.00013753,2]
[332074638,1720950651817,-853.71,0.00013753,2]
[332074639,1720950651826,-500.0,0.00013753,2]
[332074640,1720950651836,-1069.08,0.00013753,2]
[332074641,1720950651846,-504.43,0.00013753,2]
[332074642,1720950651855,-500.0,0.00013753,2]
[332074643,1720950651865,-500.0,0.00013753,2]
[332074644,1720950651875,-511.37,0.00013753,2]
[332074645,1720950651884,-500.0,0.00013753,2]
[332074646,1720950651893,-500.0,0.00013753,2]
[332074647,1720950651903,-500.0,0.00013753,2]
[332074648,1720950651916,-500.0,0.00013753,2]
[332074649,1720950651928,-1107.47,0.00013753,2]
[332074650,1720950651938,-500.0,0.00013753,2]
[332074651,1720950651948,-500.0,0.00013753,2]
[332074652,1720950651957,-500.0,0.00013753,2]
[332074653,1720950651967,-698.29,0.00013753,2]
[332074654,1720950651977,-500.0,0.00013753,2]
[332074655,1720950651987,-500.0,0.00013753,2]
[332074656,1720950651996,-594.08,0.00013753,2]
[332074657,1720950652006,-500.0,0.00013753,2]
[332074658,1720950652017,-500.0,0.00013753,2]
[332074659,1720950652032,-528.72,0.00013753,2]
[332074660,1720950652043,-500.0,0.00013753,2]
[332074661,1720950652053,-500.0,0.00013753,2]
[332074662,1720950652065,-500.0,0.00013753,2]
[332074663,1720950652075,-500.0,0.00013753,2]
[332074664,1720950652084,-1166.26,0.00013753,2]
[332074665,1720950652094,-500.0,0.00013753,2]
[332074666,1720950652103,-946.68,0.00013753,2]
[332074667,1720950652113,-500.0,0.00013753,2]
[332074668,1720950652123,-608.91,0.00013753,2]
[332074669,1720950652133,-500.0,0.00013753,2]
[332074670,1720950652143,-0.38535693,0.00013753,2]
[332074671,1720950652635,-499.61464307,0.00013753,2]
[332074672,1720950652645,-243.13575283,0.00013753,2]
[332074673,1720950652657,-256.86424717,0.00013753,2]
[332074674,1720950652668,-500.0,0.00013753,2]
[332074675,1720950652678,-266.52603572,0.00013753,2]
[332074676,1720950652689,-545.86735964,0.00013753,2]
[332074677,1720950652700,-159.24660464,0.00013753,2]
[332074678,1720950652710,-154.85882736,0.00013753,2]
[332074679,1720950652732,-348.39117264,0.00013753,2]
[332074680,1720950652741,-824.85,0.00013753,2]
[332074681,1720950652750,-506.44,0.00013753,2]
[332074682,1720950652760,-500.0,0.00013753,2]
[332074683,1720950652769,-971.82,0.00013753,2]
[332074684,1720950652780,-6321.92,0.00013753,2]
[332074685,1720950652789,-578.13,0.00013753,2]
[332074686,1720950652799,-628.23,0.00013753,2]
[332074687,1720950652808,-831.09,0.00013753,2]
[332074688,1720950652818,-500.0,0.00013753,2]
[332074689,1720950652827,-624.92,0.00013753,2]
[332074690,1720950652837,-500.0,0.00013753,2]
[332074691,1720950652846,-500.0,0.00013753,2]
[332074692,1720950652856,-500.0,0.00013753,2]
[332074693,1720950652865,-746.62,0.00013753,2]
[332074694,1720950652874,-500.0,0.00013753,2]
[332074695,1720950652884,-500.0,0.00013753,2]
[332074696,1720950652893,-500.0,0.00013753,2]
[332074697,1720950652902,-500.0,0.00013753,2]
[332074698,1720950652912,-868.65,0.00013753,2]
[332074699,1720950652921,-747.67,0.00013753,2]
[332074700,1720950652930,-641.73,0.00013753,2]
[332074701,1720950652940,-1273.15,0.00013753,2]
[332074702,1720950652949,-500.0,0.00013753,2]
[332074703,1720950652959,-773.14,0.00013753,2]
[332074704,1720950652968,-506.81,0.00013753,2]
[332074705,1720950652977,-623.68,0.00013753,2]
[332074706,1720950652987,-500.0,0.00013753,2]
[332074707,1720950652997,-500.0,0.00013753,2]
[332074708,1720950653006,-500.0,0.00013753,2]
[332074709,1720950653015,-925.73,0.00013753,2]
[332074710,1720950653025,-1161.14,0.00013753,2]
[332074711,1720950653033,-500.0,0.00013753,2]
[332074712,1720950653043,-500.0,0.00013753,2]
[332074713,1720950653052,-500.0,0.00013753,2]
[332074714,1720950653061,-894.02,0.00013753,2]
[332074715,1720950653071,-500.0,0.00013753,2]
[332074716,1720950653080,-959.67,0.00013753,2]
[332074717,1720950653090,-500.0,0.00013753,2]
[332074718,1720950653099,-631.46,0.00013753,2]
[332074719,1720950653108,-500.0,0.00013753,2]
[332074720,1720950653118,-759.69,0.00013753,2]
[332074721,1720950653127,-500.0,0.00013753,2]
[332074722,1720950653136,-1153.88,0.00013753,2]
[332074723,1720950653146,-500.0,0.00013753,2]
[332074724,1720950653155,-500.0,0.00013753,2]
[332074725,1720950653164,-681.74,0.00013753,2]
[332074726,1720950653174,-606.13,0.00013753,2]
[332074727,1720950653183,-509.16,0.00013753,2]
[332074728,1720950653194,-500.0,0.00013753,2]
[332074729,1720950653203,-831.76,0.00013753,2]
[332074730,1720950653213,-500.0,0.00013753,2]
[332074731,1720950653222,-416.08305079,0.00013753,2]
[332074732,1720950653232,-500.0,0.00013753,2]
[332074733,1720950653241,-590.72,0.00013753,2]
[332074734,1720950653251,-500.0,0.00013753,2]
[332074735,1720950653260,-500.0,0.00013753,2]
[332074736,1720950653270,-500.0,0.00013753,2]
[332074737,1720950653282,-774.47,0.00013753,2]
[332074738,1720950653292,-2909.7,0.00013753,2]
[332074739,1720950653302,-1423.63,0.00013753,2]
[332074740,1720950653311,-500.0,0.00013753,2]
[332074741,1720950653321,-500.0,0.00013753,2]
[332074742,1720950653331,-589.42,0.00013753,2]
[332074743,1720950653341,-418.87831359,0.00013753,2]
[332074744,1720950653366,-81.12168641,0.00013753,2]
[332074745,1720950653376,-1105.02,0.00013753,2]
[332074746,1720950653385,-500.0,0.00013753,2]
[332074747,1720950653395,-500.0,0.00013753,2]
[332074748,1720950653404,-694.43,0.00013753,2]
[332074749,1720950653414,-500.0,0.00013753,2]
[332074750,1720950653423,-707.53,0.00013753,2]
[332074751,1720950653433,-500.0,0.00013753,2]
[332074752,1720950653442,-1111.15,0.00013753,2]
[332074753,1720950653452,-500.0,0.00013753,2]
[332074754,1720950653461,-500.0,0.00013753,2]
[332074755,1720950653471,-3249.02,0.00013753,2]
[332074756,1720950653480,-500.0,0.00013753,2]
[332074757,1720950653490,-500.0,0.00013753,2]
[332074758,1720950653499,-1479.83,0.00013753,2]
[332074759,1720950653508,-639.98,0.00013753,2]
[332074760,1720950653518,-521.4,0.00013753,2]
[332074761,1720950653529,-500.0,0.00013753,2]
[332074762,1720950653539,-673.42,0.00013753,2]
[332074763,1720950653549,-598.0,0.00013753,2]
[332074764,1720950653558,-703.67,0.00013753,2]
[332074765,1720950653568,-500.0,0.00013753,2]
[332074766,1720950653577,-411.25650742,0.00013753,2]
[332074767,1720950653588,-1825.75,0.00013753,2]
[332074768,1720950653599,-500.0,0.00013753,2]
[332074769,1720950653608,-953.17714582,0.00013753,2]
[332074770,1720950653619,-230.68285418,0.00013753,2]
[332074771,1720950653635,-500.99,0.00013753,2]
[332074772,1720950653645,-500.0,0.00013753,2]
[332074773,1720950653655,-662.19,0.00013753,2]
[332074774,1720950653666,-355.09388974,0.00013753,2]
[332074775,1720950653680,-144.90611026,0.00013753,2]
[332074776,1720950653690,-500.0,0.00013753,2]
[332074777,1720950653699,-395.29046257,0.00013753,2]
[332074778,1720950653722,-310.53953743,0.00013753,2]
[332074779,1720950653732,-500.0,0.00013753,2]
[332074780,1720950653742,-682.93,0.00013753,2]
[332074781,1720950653752,-500.0,0.00013753,2]
[332074782,1720950653761,-81.5620314,0.00013753,2]
[332074783,1720950654125,-808.5608422,0.00013753,2]
[332074784,1720950654137,-425.51581316,0.00013753,2]
[332074785,1720950654148,-91.37131324,0.00013753,2]
[332074786,1720950654158,-402.33299855,0.00013753,2]
[332074787,1720950654175,-348.8603977,0.00013753,2]
[332074788,1720950654186,-88.94660375,0.00013753,2]
[332074789,1720950654195,-539.18,0.00013753,2]
[332074790,1720950654205,-274.06397176,0.00013753,2]
[332074791,1720950654217,-225.93602824,0.00013753,2]
[332074792,1720950654226,-617.02,0.00013753,2]
[332074793,1720950654236,-500.0,0.00013753,2]
[332074794,1720950654245,-500.0,0.00013753,2]
[332074795,1720950654253,-290.11959195,0.00013753,2]
[332074796,1720950654264,-656.01040805,0.00013753,2]
[332074797,1720950654275,-528.86,0.00013753,2]
[332074798,1720950654284,-500.0,0.00013753,2]
[332074799,1720950654293,-767.28,0.00013753,2]
[332074800,1720950654302,-2548.73,0.00013753,2]
[332074801,1720950654312,-791.4,0.00013753,2]
[332074802,1720950654321,-500.0,0.00013753,2]
[332074803,1720950654330,-500.0,0.00013753,2]
[332074804,1720950654340,-962.62,0.00013753,2]
[332074805,1720950654350,-500.0,0.00013753,2]
[332074806,1720950654360,-500.0,0.00013753,2]
[332074807,1720950654370,-1106.3,0.00013753,2]
[332074808,1720950654380,-1107.54,0.00013753,2]
[332074809,1720950654390,-500.0,0.00013753,2]
[332074810,1720950654399,-500.0,0.00013753,2]
[332074811,1720950654408,-238.47486263,0.00013753,2]
[332074812,1720950654420,-261.52513737,0.00013753,2]
[332074813,1720950654429,-684.29,0.00013753,2]
[332074814,1720950654438,-500.0,0.00013753,2]
[332074815,1720950654447,-589.53,0.00013753,2]
[332074816,1720950654457,-916.98,0.00013753,2]
[332074817,1720950654466,-526.96,0.00013753,2]
[332074818,1720950654475,-621.49,0.00013753,2]
[332074819,1720950654485,-750.11,0.00013753,2]
[332074820,1720950654501,-1236.03,0.00013753,2]
[332074821,1720950654510,-655.22492307,0.00013753,2]
[332074822,1720950654529,-850.32468447,0.00013753,2]
[332074823,1720950654540,-4206.03039246,0.00013753,2]
[332074824,1720950654549,-618.57,0.00013753,2]
[332074825,1720950654559,-500.0,0.00013753,2]
[332074826,1720950654568,-500.0,0.00013753,2]
[332074827,1720950654579,-836.42,0.00013753,2]
[332074828,1720950654592,-500.0,0.00013753,2]
[332074829,1720950654602,-1178.79,0.00013753,2]
[332074830,1720950654612,-632.17,0.00013753,2]
[332074831,1720950654621,-1508.63,0.00013753,2]
[332074832,1720950654634,-914.5,0.00013753,2]
[332074833,1720950654645,-748.67,0.00013753,2]
[332074834,1720950654656,-1341.4,0.00013753,2]
[332074835,1720950654669,-500.0,0.00013753,2]
[332074836,1720950654679,-897.22,0.00013753,2]
[332074837,1720950654690,-1190.16,0.00013753,2]
[332074838,1720950654699,-500.0,0.00013753,2]
[332074839,1720950654709,-628.92216071,0.00013753,2]
[332074840,1720950654721,-500.0,0.00013753,2]
[332074841,1720950654731,-762.8,0.00013753,2]
[332074842,1720950654741,-500.0,0.00013753,2]
[332074843,1720950654751,-500.0,0.00013753,2]
[332074844,1720950654761,-1199.02,0.00013753,2]
[332074845,1720950654773,-500.0,0.00013753,2]
[332074846,1720950654787,-500.0,0.00013753,2]
[332074847,1720950654796,-500.0,0.00013753,2]
[332074848,1720950654805,-507.52,0.00013753,2]
[332074849,1720950654814,-500.0,0.00013753,2]
[332074850,1720950654824,-724.39,0.00013753,2]
[332074851,1720950654833,-500.0,0.00013753,2]
[332074852,1720950654842,-500.0,0.00013753,2]
[332074853,1720950654851,-634.94,0.00013753,2]
[332074854,1720950654860,-1365.38,0.00013753,2]
[332074855,1720950654869,-825.51,0.00013753,2]
[332074856,1720950654879,-500.0,0.00013753,2]
[332074857,1720950654890,-751.37,0.00013753,2]
[332074858,1720950654901,-500.0,0.00013753,2]
[332074859,1720950654912,-500.0,0.00013753,2]
[332074860,1720950654921,-1400.82,0.00013753,2]
[332074861,1720950654932,-724.89,0.00013753,2]
[332074862,1720950654943,-1368.15,0.00013753,2]
[332074863,1720950654952,-769.5,0.00013753,2]
[332074864,1720950654965,-607.7,0.00013753,2]
[332074865,1720950654974,-1055.3,0.00013753,2]
[332074866,1720950654986,-718.0,0.00013753,2]
[332074867,1720950654996,-500.0,0.00013753,2]
[332074868,1720950655005,-549.67,0.00013753,2]
[332074869,1720950655015,-1447.55,0.00013753,2]
[332074870,1720950655026,-500.0,0.00013753,2]
[332074871,1720950655035,-527.2,0.00013753,2]
[332074872,1720950655044,-500.0,0.00013753,2]
[332074873,1720950655053,-863.36,0.00013753,2]
[332074874,1720950655064,-1211.63,0.00013753,2]
[332074875,1720950655073,-500.0,0.00013753,2]
[332074876,1720950655082,-506.9,0.00013753,2]
[332074877,1720950655091,-834.88,0.00013753,2]
[332074878,1720950655100,-703.16,0.00013753,2]
[332074879,1720950655109,-500.0,0.00013753,2]
[332074880,1720950655119,-528.08,0.00013753,2]
[332074881,1720950655130,-625.77,0.00013753,2]
[332074882,1720950655141,-500.0,0.00013753,2]
[332074883,1720950655151,-1350.15,0.00013753,2]
[332074884,1720950655160,-1991.30025904,0.00013753,2]
[332074885,1720950655172,-2003.67974096,0.00013753,2]
[332074886,1720950655182,-500.0,0.00013753,2]
[332074887,1720950655192,-220.36,0.00013753,3]
[332074888,1720950655202,-2204.38190755,0.00013759,2]
[332074889,1720950655211,-150.0,0.00013759,2]
[332074890,1720950655220,-150.0,0.0001376,2]
[332074891,1720950655230,-150.0,0.00013761,2]
[332074892,1720950655239,-368.41,0.00013763,2]
[332074893,1720950655248,-92.68635162,0.00013763,2]
[332074894,1720950655259,-94.87172392,0.00013763,2]
[332074895,1720950655268,-150.0,0.00013767,2]
[332074896,1720950655278,-150.0,0.00013771,2]
[332074897,1720950655287,-150.0,0.00013776,2]
[332074898,1720950655296,-150.0,0.00013777,2]
[332074899,1720950655305,-150.0,0.00013777,2]
[332074900,1720950655315,-445.88939657,0.0001378,2]
[332074901,1720950655324,-150.0,0.00013786,2]
[332074902,1720950655334,-150.0,0.00013786,2]
[332074903,1720950655343,-150.0,0.00013787,2]
[332074904,1720950655352,-150.0,0.00013787,2]
[332074905,1720950655363,-500.0,0.0001379,2]
[332074906,1720950655373,-155.0,0.0001379,10]
[332074907,1720950655383,-150.0,0.0001379,2]
[332074908,1720950655392,-1055.13999659,0.0001379,2]
[332074909,1720950655410,-626.08111507,0.0001379,2]
[332074910,1720950655421,-538.14233343,0.0001379,2]
[332074911,1720950655439,-6028.6047016,0.0001379,2]
[332074912,1720950655450,-415.0,0.0001379,2]
[332074916,1720950739330,4655.61680881,0.00013,30]
[332074918,1720951320006,2031.0030269,0.00025,60]
[332074920,1720951380079,-267.06,0.00010774,2]
[332074921,1720951402362,172.42966663,0.00010998,2]
[332074922,1720951454810,155.0,0.00010998,10]
[332074923,1720951525316,271.88,0.00010632,2]
[332074924,1720951548779,1200.248194,0.00010998,2]
[332074925,1720951561820,186.92858268,0.00010632,10]
[332075006,1720951831678,-235.68358109,0.00011098,2]
[332075007,1720951831688,-167.34984429,0.00011098,2]
[332075008,1720951831697,-407.8538692,0.00011098,2]
[332075009,1720951831707,-305.90837372,0.00011098,2]
[332075010,1720951831716,-272.87279212,0.00011098,2]
[332075011,1720951831725,-155.0,0.00011098,2]
[332075012,1720951831735,-1620.08154025,0.00012299,2]
[332075013,1720951831764,-289.91845975,0.00012299,2]
[332075014,1720951831773,-164.20797438,0.00012314,2]
[332075015,1720951831783,-250.0,0.0001235,2]
[332075016,1720951831792,-202.26254963,0.00012424,2]
[332075017,1720951831804,-47.73745037,0.00012424,2]
[332075018,1720951831813,-221.04,0.00012441,2]
[332075019,1720951831822,-825.41,0.00012454,2]
[332075020,1720951831832,-1386.66,0.00012493,2]
[332075021,1720951831843,-176.67,0.00012522,2]
[332075022,1720951831852,-86.74963539,0.00012549,2]
[332075023,1720951831864,-234.26036461,0.00012549,2]
[332075024,1720951831874,-2207.15189725,0.00012549,2]
[332075025,1720951831900,-347.96815075,0.00012549,2]
[332075026,1720951831914,-231.349952,0.00012549,2]
[332075027,1720951831924,-473.57266232,0.00012549,2]
[332075028,1720951831937,-357.86733768,0.00012549,2]
[332075029,1720951831953,-169.54,0.00012657,2]
[332075030,1720951831964,-449.38,0.00012657,2]
[332075031,1720951831973,-150.99,0.00012657,2]
[332075032,1720951831983,-876.21,0.00012657,2]
[332075033,1720951831994,-328.34245187,0.00012814,2]
[332075034,1720951832008,-671.65754813,0.00012814,2]
[332075035,1720951832018,-41.41611453,0.00012887,2]
[332075036,1720951832035,-113.58388547,0.00012887,2]
[332075037,1720951832045,-156.52675699,0.00012887,2]
[332075038,1720951832056,-350.90559494,0.00012887,2]
[332075039,1720951832067,-271.88,0.00012896,2]
[332075040,1720951832076,-0.70103508,0.00012899,2]
[332075041,1720951832088,-845.2143101,0.00012899,2]
[332075042,1720951832098,-845.91534518,0.000129,2]
[332075043,1720951832107,-1250.0,0.00013,2]
[332075044,1720951832117,-465.77881292,0.00013498,2]
[332075045,1720951832149,-500.0,0.00013498,2]
[332075046,1720951832162,-919.70999,0.00013498,2]
[332075047,1720951832183,-404.4999995,0.00013498,2]
[332075048,1720951832196,-250.0,0.00013498,2]
[332075049,1720951832209,-10447.72699758,0.00013498,2]
[332075050,1720951832219,-500.0,0.00013498,2]
[332075051,1720951832228,-439.12951989,0.00013498,2]